[Event "FIDE CB Open 2022"]
[Site "Ceske Budejovice"]
[Date "2022.07.04"]
[Round "4.1"]
[White "Librelato, Kathie Goulart"]
[Black "Roshka, Yevgeniy"]
[Result "1/2-1/2"]
[ECO "C01"]
[WhiteElo "2255"]
[BlackElo "2497"]
[Annotator "RC"]
[PlyCount "70"]
[EventDate "2022.07.01"]
[EventType "swiss"]
[EventCountry "CZE"]
[SourceTitle "playchess.com"]
[Source "ChessBase"]
[SourceQuality "1"]
[TimeControl "40/5400+30:1800+30"]

1. e4 {[%emt 0:00:06]} e6 {[%emt 0:00:26]} 2. d4 {[%emt 0:00:08]} d5 {[%emt 0:00:04]} 3. Bd3 {[%emt 0:00:05]} dxe4 {[%emt 0:01:22]} 4. Bxe4 {[%emt 0:00:06]} Nf6 {[%emt 0:00:02]} 5. Bf3 {[%emt 0:00:06]} c5 {[%emt 0:00:04]} 6. Ne2 {[%emt 0:01:08]} Nc6 {[%emt 0:00:02]} 7. Be3 {[%emt 0:01:24]} cxd4 {[%emt 0:03:35]} 8. Nxd4 {[%emt 0:00:06]} Ne5 {[%emt 0:00:04]} 9. Qe2 {[%emt 0:03:42]} Nxf3+ {[%emt 0:00:31]} 10. Nxf3 {[%emt 0:00:07]} Qa5+ {[%emt 0:05:37]} 11. Nbd2 {[%emt 0:07:40]} b6 {[%emt 0:07:29]} 12. O-O {[%emt 0:09:07]} Bb7 {[%emt 0:03:44]} 13. Nc4 {[%emt 0:17:19]} Ba6 {[%emt 0:06:01]} 14. Rfe1 {[%emt 0:02:40]} Qb5 {[%emt 0:15:12]} 15. b3 {[%emt 0:01:15]} Be7 {[%emt 0:01:43]} 16. a4 {[%emt 0:06:02]} Qh5 {[%emt 0:00:55]} 17. Nd6+ {[%emt 0:14:44]} Bxd6 {[%emt 0:00:02]} 18. Qxa6 {[%emt 0:00:06]} O-O {[%emt 0:00:45]} 19. a5 {[%emt 0:00:43]} Bb4 {[%emt 0:08:20]} 20. axb6 {[%emt 0:00:52]} Bxe1 {[%emt 0:00:02]} 21. Nxe1 {[%emt 0:00:27]} Ng4 {[%emt 0:00:12]} 22. b7 {[%emt 0:20:58]} Qxh2+ {[%emt 0:00:54]} 23. Kf1 {[%emt 0:00:05]} Nxe3+ {[%emt 0:00:06]} 24. fxe3 {[%emt 0:00:04]} Rad8 {[%emt 0:05:56]} 25. Nd3 {[%emt 0:00:33]} Qc7 {[%emt 0:02:48]} 26. Ra4 {[%emt 0:10:48]} Qxc2 {[%emt 0:01:02]} 27. Rd4 {[%emt 0:00:04]} e5 {[%emt 0:00:37]} 28. Rxd8 {[%emt 0:02:12]} Rxd8 {[%emt 0:00:10]} 29. Qd6 {[%emt 0:00:05]} Qd1+ {[%emt 0:00:19]} 30. Kf2 {[%emt 0:00:08]} Qd2+ {[%emt 0:00:03]} 31. Kf1 {[%emt 0:00:46]} Qd1+ {[%emt 0:01:24]} 32. Kf2 {[%emt 0:00:04]} Qd2+ {[%emt 0:00:27]} 33. Kf1 {[%emt 0:02:15]} Qd1+ {[%emt 0:00:04]} 34. Kf2 {[%emt 0:00:07]} Qd2+ {[%emt 0:00:02]} 35. Kf1 {[%emt 0:00:48]} Qd1+ {[%emt 0:00:17]} 1/2-1/2

[Event "FIDE CB Open 2022"]
[Site "Ceske Budejovice"]
[Date "2022.07.04"]
[Round "4.2"]
[White "Domalchuk-Jonasson, Aleksandr"]
[Black "Heimisson, Hilmir Freyr"]
[Result "1/2-1/2"]
[ECO "E05"]
[WhiteElo "2244"]
[BlackElo "2281"]
[Annotator "RC"]
[PlyCount "166"]
[EventDate "2022.07.01"]
[EventType "swiss"]
[EventCountry "CZE"]
[SourceTitle "playchess.com"]
[Source "ChessBase"]
[SourceQuality "1"]
[TimeControl "40/5400+30:1800+30"]

1. d4 {[%emt 0:00:07]} Nf6 {[%emt 0:01:02]} 2. c4 {[%emt 0:00:25]} e6 {[%emt 0:00:08]} 3. Nf3 {[%emt 0:00:23]} d5 {[%emt 0:00:54]} 4. g3 {[%emt 0:00:24]} Be7 {[%emt 0:00:30]} 5. Bg2 {[%emt 0:00:23]} O-O {[%emt 0:00:11]} 6. O-O {[%emt 0:00:18]} dxc4 {[%emt 0:00:26]} 7. Qc2 {[%emt 0:00:54]} a6 {[%emt 0:00:20]} 8. a4 {[%emt 0:00:38]} Bd7 {[%emt 0:00:35]} 9. Rd1 {[%emt 0:01:03]} Bc6 {[%emt 0:01:43]} 10. Nc3 {[%emt 0:00:40]} Bxf3 {[%emt 0:01:42]} 11. Bxf3 {[%emt 0:00:11]} Nc6 {[%emt 0:00:05]} 12. Bxc6 {[%emt 0:00:47]} bxc6 {[%emt 0:00:07]} 13. Bg5 {[%emt 0:01:34]} Rb8 {[%emt 0:13:01]} 14. Rac1 {[%emt 0:03:42]} h6 {[%emt 0:15:51]} 15. Bxf6 {[%emt 0:01:32]} Bxf6 {[%emt 0:03:36]} 16. e3 {[%emt 0:03:21]} Be7 {[%emt 0:08:13]} 17. Ne4 {[%emt 0:08:08]} Qd5 {[%emt 0:17:58]} 18. Nd2 {[%emt 0:26:08]} Rb4 {[%emt 0:00:29]} 19. Nxc4 {[%emt 0:03:08]} Rfb8 {[%emt 0:01:17]} 20. Ne5 {[%emt 0:08:48]} Rxb2 {[%emt 0:03:19]} 21. Qxc6 {[%emt 0:01:31]} Bd6 {[%emt 0:02:21]} 22. Qxd5 {[%emt 0:09:48]} exd5 {[%emt 0:00:06]} 23. Nd7 {[%emt 0:00:14]} Rd8 {[%emt 0:07:37]} 24. Nc5 {[%emt 0:00:39]} a5 {[%emt 0:00:42]} 25. Na6 {[%emt 0:04:11]} Rc8 {[%emt 0:06:54]} 26. Rc6 {[%emt 0:02:28]} Rb6 {[%emt 0:01:07]} 27. Rdc1 {[%emt 0:00:53]} Rxc6 {[%emt 0:00:24]} 28. Rxc6 {[%emt 0:00:05]} Kf8 {[%emt 0:01:37]} 29. Nc5 {[%emt 0:01:13]} Ke7 {[%emt 0:05:32]} 30. Nb7 {[%emt 0:03:10]} Ra8 {[%emt 0:03:02]} 31. Nxd6 {[%emt 0:03:44]} Kd7 {[%emt 0:02:22]} 32. Rc5 {[%emt 0:00:40]} Kxd6 {[%emt 0:00:05]} 33. Rb5 {[%emt 0:00:21]} Ra7 {[%emt 0:01:52]} 34. g4 {[%emt 0:00:38]} c6 {[%emt 0:00:52]} 35. Rb8 {[%emt 0:00:27]} Rc7 {[%emt 0:01:02]} 36. Ra8 {[%emt 0:07:00]} c5 {[%emt 0:00:20]} 37. Ra6+ {[%emt 0:00:24]} Rc6 {[%emt 0:00:51]} 38. dxc5+ {[%emt 0:00:25]} Kxc5 {[%emt 0:00:20]} 39. Rxa5+ {[%emt 0:00:04]} Kd6 {[%emt 0:00:53]} 40. Ra8 {[%emt 0:08:10]} Rc4 {[%emt 0:00:32]} 41. h3 {[%emt 0:30:52]} Ke7 {[%emt 0:07:43]} 42. Rg8 {[%emt 0:00:00]} g6 {[%emt 0:03:02]} 43. a5 {[%emt 0:00:00]} d4 {[%emt 0:03:42]} 44. a6 {[%emt 0:00:00]} Ra4 {[%emt 0:00:09]} 45. exd4 {[%emt 0:00:00]} Rxa6 {[%emt 0:00:06]} 46. Rh8 {[%emt 0:00:00]} Rd6 {[%emt 0:01:34]} 47. Rxh6 {[%emt 0:00:00]} Rxd4 {[%emt 0:00:08]} 48. Rh8 {[%emt 0:00:00]} Kf6 {[%emt 0:00:31]} 49. Kg2 {[%emt 0:00:00]} Rd3 {[%emt 0:00:36]} 50. h4 {[%emt 0:00:00]} Ra3 {[%emt 0:02:49]} 51. f3 {[%emt 0:00:00]} Rb3 {[%emt 0:00:47]} 52. Kg3 {[%emt 0:00:00]} Ra3 {[%emt 0:00:30]} 53. Rg8 {[%emt 0:00:00]} Ra1 {[%emt 0:01:24]} 54. Rb8 {[%emt 0:00:00]} Ra4 {[%emt 0:00:40]} 55. Re8 {[%emt 0:00:00]} Ra1 {[%emt 0:00:52]} 56. Re4 {[%emt 0:00:00]} Rg1+ {[%emt 0:00:27]} 57. Kf4 {[%emt 0:00:00]} Rh1 {[%emt 0:00:08]} 58. g5+ {[%emt 0:00:00]} Kg7 {[%emt 0:00:10]} 59. Ke5 {[%emt 0:00:00]} Rh2 {[%emt 0:00:51]} 60. Rg4 {[%emt 0:00:00]} Re2+ {[%emt 0:00:17]} 61. Kf4 {[%emt 0:00:00]} Rh2 {[%emt 0:00:16]} 62. Kg3 {[%emt 0:00:00]} Ra2 {[%emt 0:00:18]} 63. Rb4 {[%emt 0:00:00]} Ra1 {[%emt 0:00:22]} 64. f4 {[%emt 0:00:00]} Rg1+ {[%emt 0:01:06]} 65. Kh2 {[%emt 0:00:00]} Ra1 {[%emt 0:00:20]} 66. Rb3 {[%emt 0:00:00]} Rf1 {[%emt 0:00:23]} 67. Rb4 {[%emt 0:00:00]} Rf3 {[%emt 0:00:32]} 68. Kg2 {[%emt 0:00:00]} Ra3 {[%emt 0:00:09]} 69. Rb2 {[%emt 0:00:00]} Rc3 {[%emt 0:02:09]} 70. Rf2 {[%emt 0:00:00]} Rc5 {[%emt 0:00:20]} 71. Kg3 {[%emt 0:00:00]} Rc3+ {[%emt 0:00:28]} 72. Rf3 {[%emt 0:00:00]} Rc5 {[%emt 0:00:27]} 73. Kg4 {[%emt 0:00:00]} Rc4 {[%emt 0:00:25]} 74. h5 {[%emt 0:00:00]} gxh5+ {[%emt 0:00:28]} 75. Kxh5 {[%emt 0:00:00]} Rc1 {[%emt 0:00:42]} 76. Kg4 {[%emt 0:00:00]} f6 {[%emt 0:02:24]} 77. Ra3 {[%emt 0:00:00]} Rg1+ {[%emt 0:01:23]} 78. Kf5 {[%emt 0:00:00]} fxg5 {[%emt 0:00:06]} 79. Ra7+ {[%emt 0:00:00]} Kh6 {[%emt 0:04:17]} 80. Ra6+ {[%emt 0:00:00]} Kg7 {[%emt 0:00:53]} 81. Rg6+ {[%emt 0:00:00]} Kf7 {[%emt 0:00:18]} 82. Rxg5 {[%emt 0:00:00]} Rxg5+ {[%emt 0:02:37]} 83. Kxg5 {[%emt 0:00:00]} Kg7 {[%emt 0:00:07]} 1/2-1/2

[Event "FIDE CB Open 2022"]
[Site "Ceske Budejovice"]
[Date "2022.07.04"]
[Round "4.3"]
[White "Mai, Alexander Oliver"]
[Black "Velicka, Petr"]
[Result "1/2-1/2"]
[ECO "B19"]
[WhiteElo "2159"]
[BlackElo "2384"]
[Annotator "RC"]
[PlyCount "76"]
[EventDate "2022.07.01"]
[EventType "swiss"]
[EventCountry "CZE"]
[SourceTitle "playchess.com"]
[Source "ChessBase"]
[SourceQuality "1"]
[TimeControl "40/5400+30:1800+30"]

1. e4 {[%emt 0:00:04]} c6 {[%emt 0:00:05]} 2. d4 {[%emt 0:00:08]} d5 {[%emt 0:00:06]} 3. Nd2 {[%emt 0:00:05]} dxe4 {[%emt 0:00:06]} 4. Nxe4 {[%emt 0:00:05]} Bf5 {[%emt 0:00:07]} 5. Ng3 {[%emt 0:00:06]} Bg6 {[%emt 0:00:05]} 6. h4 {[%emt 0:00:09]} h6 {[%emt 0:00:06]} 7. Nf3 {[%emt 0:00:05]} e6 {[%emt 0:00:18]} 8. Ne5 {[%emt 0:00:22]} Bh7 {[%emt 0:00:06]} 9. Bd3 {[%emt 0:00:30]} Bxd3 {[%emt 0:00:07]} 10. Qxd3 {[%emt 0:00:04]} Nd7 {[%emt 0:00:09]} 11. f4 {[%emt 0:00:22]} Bb4+ {[%emt 0:00:13]} 12. c3 {[%emt 0:00:08]} Be7 {[%emt 0:00:06]} 13. Bd2 {[%emt 0:00:42]} Ngf6 {[%emt 0:00:11]} 14. O-O-O {[%emt 0:00:18]} c5 {[%emt 0:00:04]} 15. Nxd7 {[%emt 0:09:13]} Qxd7 {[%emt 0:02:40]} 16. Be3 {[%emt 0:00:07]} cxd4 {[%emt 0:06:45]} 17. Bxd4 {[%emt 0:01:36]} O-O {[%emt 0:00:54]} 18. Bxf6 {[%emt 0:05:26]} Qxd3 {[%emt 0:00:09]} 19. Rxd3 {[%emt 0:00:05]} Bxf6 {[%emt 0:01:01]} 20. Ne4 {[%emt 0:01:47]} Rfd8 {[%emt 0:17:22]} 21. Nxf6+ {[%emt 0:08:38]} gxf6 {[%emt 0:00:07]} 22. Rhd1 {[%emt 0:00:14]} Rxd3 {[%emt 0:01:03]} 23. Rxd3 {[%emt 0:00:02]} f5 {[%emt 0:00:13]} 24. Rd7 {[%emt 0:05:55]} b5 {[%emt 0:05:44]} 25. Kc2 {[%emt 0:19:10]} Kf8 {[%emt 0:10:32]} 26. Kb3 {[%emt 0:24:00]} Ke8 {[%emt 0:00:15]} 27. Rd2 {[%emt 0:03:02]} Rd8 {[%emt 0:08:18]} 28. Re2 {[%emt 0:03:33]} Kd7 {[%emt 0:03:20]} 29. Re3 {[%emt 0:05:48]} Rg8 {[%emt 0:05:04]} 30. g3 {[%emt 0:00:10]} Kc6 {[%emt 0:00:23]} 31. c4 {[%emt 0:00:58]} Rd8 {[%emt 0:01:10]} 32. cxb5+ {[%emt 0:00:36]} Kxb5 {[%emt 0:00:07]} 33. a4+ {[%emt 0:00:53]} Kb6 {[%emt 0:04:31]} 34. Ka3 {[%emt 0:04:49]} a5 {[%emt 0:05:49]} 35. Rb3+ {[%emt 0:00:39]} Ka6 {[%emt 0:00:18]} 36. Rc3 {[%emt 0:00:33]} Kb6 {[%emt 0:01:56]} 37. Rb3+ {[%emt 0:00:32]} Ka6 {[%emt 0:00:26]} 38. Rc3 {[%emt 0:00:19]} Kb6 {[%emt 0:00:38]} 1/2-1/2

[Event "FIDE CB Open 2022"]
[Site "Ceske Budejovice"]
[Date "2022.07.04"]
[Round "4.4"]
[White "Neuman, Petr"]
[Black "Abdulla, Khayala"]
[Result "1-0"]
[ECO "D36"]
[WhiteElo "2378"]
[BlackElo "2207"]
[Annotator "RC"]
[PlyCount "79"]
[EventDate "2022.07.01"]
[EventType "swiss"]
[EventCountry "CZE"]
[SourceTitle "playchess.com"]
[Source "ChessBase"]
[SourceQuality "1"]
[TimeControl "40/5400+30:1800+30"]

1. c4 {[%emt 0:00:12]} e6 {[%emt 0:01:31]} 2. Nc3 {[%emt 0:00:12]} d5 {[%emt 0:00:45]} 3. d4 {[%emt 0:02:41]} Nf6 {[%emt 0:00:12]} 4. cxd5 {[%emt 0:00:08]} exd5 {[%emt 0:00:10]} 5. Bg5 {[%emt 0:00:05]} Be7 {[%emt 0:00:53]} 6. e3 {[%emt 0:00:12]} c6 {[%emt 0:01:03]} 7. Qc2 {[%emt 0:01:39]} Nbd7 {[%emt 0:00:50]} 8. Bd3 {[%emt 0:00:14]} Nf8 {[%emt 0:01:23]} 9. Nge2 {[%emt 0:01:11]} Ne6 {[%emt 0:00:49]} 10. Bh4 {[%emt 0:00:05]} g6 {[%emt 0:00:54]} 11. O-O {[%emt 0:00:11]} O-O {[%emt 0:00:17]} 12. Rab1 {[%emt 0:01:33]} a5 {[%emt 0:02:39]} 13. f3 {[%emt 0:00:18]} Re8 {[%emt 0:06:32]} 14. Rbd1 {[%emt 0:01:01]} b5 {[%emt 0:04:29]} 15. Bf2 {[%emt 0:01:24]} Bd7 {[%emt 0:07:05]} 16. Kh1 {[%emt 0:02:17]} Rc8 {[%emt 0:07:50]} 17. e4 {[%emt 0:01:01]} dxe4 {[%emt 0:01:45]} 18. fxe4 {[%emt 0:01:50]} Ng4 {[%emt 0:01:22]} 19. Bg1 {[%emt 0:00:29]} Bg5 {[%emt 0:02:28]} 20. Rf3 {[%emt 0:00:58]} Bh6 {[%emt 0:00:54]} 21. e5 {[%emt 0:03:56]} c5 {[%emt 0:07:23]} 22. dxc5 {[%emt 0:02:52]} Nxe5 {[%emt 0:05:35]} 23. Bxb5 {[%emt 0:08:26]} Nxc5 {[%emt 0:19:13]} 24. Bxc5 {[%emt 0:02:49]} Rxc5 {[%emt 0:07:44]} 25. Bxd7 {[%emt 0:00:57]} Nxd7 {[%emt 0:00:41]} 26. Rfd3 {[%emt 0:01:08]} Rh5 {[%emt 0:04:20]} 27. h3 {[%emt 0:05:55]} Qa8 {[%emt 0:01:16]} 28. Nd5 {[%emt 0:02:08]} Kf8 {[%emt 0:04:46]} 29. Qc3 {[%emt 0:10:58]} Ne5 {[%emt 0:02:31]} 30. Rd4 {[%emt 0:00:48]} Qc6 {[%emt 0:03:03]} 31. Ng3 {[%emt 0:01:56]} Rg5 {[%emt 0:00:42]} 32. Ne4 {[%emt 0:00:26]} Rf5 {[%emt 0:02:05]} 33. Qa3+ {[%emt 0:00:58]} Kg7 {[%emt 0:00:15]} 34. Nd6 {[%emt 0:00:29]} Rf2 {[%emt 0:00:48]} 35. Nxe8+ {[%emt 0:00:43]} Qxe8 {[%emt 0:00:02]} 36. Re4 {[%emt 0:02:29]} f6 {[%emt 0:02:29]} 37. Qxa5 {[%emt 0:02:26]} Rxb2 {[%emt 0:00:58]} 38. Nxf6 {[%emt 0:01:27]} Kxf6 {[%emt 0:00:58]} 39. Rf1+ {[%emt 0:00:05]} Kg7 {[%emt 0:00:08]} 40. Rxe5 {[%emt 0:00:43]} 1-0

[Event "FIDE CB Open 2022"]
[Site "Ceske Budejovice"]
[Date "2022.07.04"]
[Round "4.5"]
[White "Mostbauer, Florian"]
[Black "Cuhra, Martin"]
[Result "1/2-1/2"]
[ECO "B00"]
[WhiteElo "2303"]
[BlackElo "2225"]
[Annotator "RC"]
[PlyCount "77"]
[EventDate "2022.07.01"]
[EventType "swiss"]
[EventCountry "CZE"]
[SourceTitle "playchess.com"]
[Source "ChessBase"]
[SourceQuality "1"]
[TimeControl "40/5400+30:1800+30"]

1. d4 {[%emt 0:00:06]} Nf6 {[%emt 0:00:15]} 2. Nf3 {[%emt 0:00:28]} c5 {[%emt 0:00:07]} 3. c3 {[%emt 0:07:07]} e6 {[%emt 0:05:05]} 4. Bg5 {[%emt 0:08:46]} Be7 {[%emt 0:05:07]} 5. Nbd2 {[%emt 0:03:20]} b6 {[%emt 0:04:46]} 6. e4 {[%emt 0:09:53]} Bb7 {[%emt 0:02:37]} 7. Bd3 {[%emt 0:03:39]} d5 {[%emt 0:11:45]} 8. e5 {[%emt 0:14:50]} Ne4 {[%emt 0:04:32]} 9. Bxe7 {[%emt 0:01:07]} Qxe7 {[%emt 0:00:40]} 10. O-O {[%emt 0:00:50]} O-O {[%emt 0:09:27]} 11. Re1 {[%emt 0:04:19]} Nxd2 {[%emt 0:04:32]} 12. Qxd2 {[%emt 0:00:12]} Nc6 {[%emt 0:00:59]} 13. Qf4 {[%emt 0:07:57]} cxd4 {[%emt 0:06:42]} 14. cxd4 {[%emt 0:00:08]} Nb4 {[%emt 0:03:07]} 15. Bb1 {[%emt 0:09:48]} Rac8 {[%emt 0:04:33]} 16. Qd2 {[%emt 0:00:44]} Rc7 {[%emt 0:06:49]} 17. a3 {[%emt 0:03:08]} Nc6 {[%emt 0:00:37]} 18. Qd3 {[%emt 0:05:35]} g6 {[%emt 0:00:13]} 19. Qe3 {[%emt 0:00:24]} f5 {[%emt 0:05:04]} 20. exf6 {[%emt 0:01:15]} Qxf6 {[%emt 0:00:10]} 21. Bd3 {[%emt 0:01:15]} Re7 {[%emt 0:01:28]} 22. Rac1 {[%emt 0:00:45]} Qf4 {[%emt 0:03:31]} 23. b4 {[%emt 0:05:44]} Qxe3 {[%emt 0:01:40]} 24. fxe3 {[%emt 0:01:54]} Nd8 {[%emt 0:04:03]} 25. Ne5 {[%emt 0:05:54]} Nf7 {[%emt 0:00:53]} 26. Nxf7 {[%emt 0:00:52]} Rfxf7 {[%emt 0:00:53]} 27. Rc2 {[%emt 0:02:30]} e5 {[%emt 0:01:28]} 28. Rf1 {[%emt 0:00:39]} exd4 {[%emt 0:01:12]} 29. exd4 {[%emt 0:00:37]} Rxf1+ {[%emt 0:01:26]} 30. Bxf1 {[%emt 0:00:31]} Kf8 {[%emt 0:00:42]} 31. Kf2 {[%emt 0:00:36]} Rf7+ {[%emt 0:00:56]} 32. Ke1 {[%emt 0:00:17]} Ke7 {[%emt 0:00:40]} 33. Rc7+ {[%emt 0:00:56]} Ke6 {[%emt 0:00:09]} 34. Rxf7 {[%emt 0:00:05]} Kxf7 {[%emt 0:00:05]} 35. Kf2 {[%emt 0:00:08]} Kf6 {[%emt 0:00:40]} 36. Bd3 {[%emt 0:00:34]} h6 {[%emt 0:00:15]} 37. Kf3 {[%emt 0:00:16]} Bc8 {[%emt 0:00:42]} 38. g3 {[%emt 0:00:12]} g5 {[%emt 0:01:20]} 39. h4 {[%emt 0:00:17]} 1/2-1/2

[Event "FIDE CB Open 2022"]
[Site "Ceske Budejovice"]
[Date "2022.07.04"]
[Round "4.6"]
[White "Toman, Ondrej"]
[Black "Panjer, Sidney"]
[Result "1-0"]
[WhiteElo "2276"]
[BlackElo "2140"]
[Annotator "TA"]
[PlyCount "33"]
[EventDate "2022.07.01"]
[EventType "swiss"]
[EventCountry "CZE"]
[SourceTitle "playchess.com"]
[Source "ChessBase"]
[SourceQuality "1"]
[TimeControl "40/5400+30:1800+30"]

{[%evp 15,19,18,39,33,29,1]} 1. d4 {[%emt 0:00:04]} d5 {[%emt 0:00:00]} 2. c4 {[%emt 0:00:05]} e6 {[%emt 0:00:10]} 3. Nc3 {[%emt 0:00:05]} Nf6 {[%emt 0:00:20]} 4. cxd5 {[%emt 0:03:50]} exd5 {[%emt 0:00:00]} 5. Bg5 {[%emt 0:00:30]} Be7 {[%emt 0:00:00]} 6. e3 {[%emt 0:00:30]} c6 {[%emt 0:00:18]} 7. Bd3 {[%emt 0:00:30]} Nbd7 {[%emt 0:00:30]} 8. Qc2 {[%emt 0:00:30]} Nh5 {[%emt 0:00:30] is more profitable than 8...0-0 at the moment.} 9. Bxe7 {[%emt 0:00:30] D36: Queen's Gambit Declined: Exchange Variation: Main line (5 Bg5 c6 6 Qc2).} Qxe7 {[%emt 0:00:30]} 10. h3 {[%emt 0:57:48][%mdl 32768] [#] Loss on time!?} {Predecessor:} g6 $146 11. O-O-O Nb6 12. Re1 Be6 13. g4 Ng7 14. f4 O-O-O 15. Nf3 Ne8 16. Na4 Nxa4 17. Qxa4 {1-0 (50) Kasyan,A (2318)-Hansen,A (2189) Kemer 2007} 1-0

[Event "FIDE CB Open 2022"]
[Site "Ceske Budejovice"]
[Date "2022.07.04"]
[Round "4.7"]
[White "Pirola, Claudionor Alcides L"]
[Black "Hrbek, Stepan"]
[Result "0-1"]
[ECO "C28"]
[WhiteElo "2100"]
[BlackElo "2272"]
[Annotator "RC"]
[PlyCount "52"]
[EventDate "2022.07.01"]
[EventType "swiss"]
[EventCountry "CZE"]
[SourceTitle "playchess.com"]
[Source "ChessBase"]
[SourceQuality "1"]
[TimeControl "40/5400+30:1800+30"]

1. e4 {[%emt 0:00:04]} e5 {[%emt 0:00:12]} 2. Bc4 {[%emt 0:00:07]} Nf6 {[%emt 0:00:26]} 3. d3 {[%emt 0:00:11]} Nc6 {[%emt 0:04:24]} 4. Nc3 {[%emt 0:00:13]} Na5 {[%emt 0:00:07]} 5. Nge2 {[%emt 0:00:50]} c6 {[%emt 0:02:53]} 6. O-O {[%emt 0:03:25]} b5 {[%emt 0:00:06]} 7. Bb3 {[%emt 0:00:52]} Be7 {[%emt 0:09:36]} 8. Ng3 {[%emt 0:13:03]} Nxb3 {[%emt 0:01:48]} 9. axb3 {[%emt 0:00:08]} d5 {[%emt 0:02:39]} 10. exd5 {[%emt 0:01:12]} b4 {[%emt 0:05:18]} 11. Na4 {[%emt 0:06:44]} Nxd5 {[%emt 0:14:17]} 12. Re1 {[%emt 0:02:37]} O-O {[%emt 0:01:40]} 13. Rxe5 {[%emt 0:03:22]} Bd6 {[%emt 0:01:34]} 14. Re1 {[%emt 0:02:58]} f5 {[%emt 0:00:17]} 15. c4 {[%emt 0:09:33]} bxc3 {[%emt 0:02:22]} 16. bxc3 {[%emt 0:00:32]} f4 {[%emt 0:17:41]} 17. Ne4 {[%emt 0:00:33]} f3 {[%emt 0:00:11]} 18. Nxd6 {[%emt 0:11:31]} Qxd6 {[%emt 0:00:23]} 19. Ba3 {[%emt 0:01:27]} Qg6 {[%emt 0:00:20]} 20. g3 {[%emt 0:00:36]} Rf6 {[%emt 0:12:12]} 21. Re5 {[%emt 0:10:49]} Nf4 {[%emt 0:02:40]} 22. Be7 {[%emt 0:03:18]} Ne2+ {[%emt 0:03:18]} 23. Kf1 {[%emt 0:03:27]} Bh3+ {[%emt 0:01:23]} 24. Ke1 {[%emt 0:00:10]} Re6 {[%emt 0:00:07]} 25. Re3 {[%emt 0:08:09]} Rxe3 {[%emt 0:01:39]} 26. fxe3 {[%emt 0:00:02]} Qf7 {[%emt 0:00:54]} 0-1

[Event "FIDE CB Open 2022"]
[Site "Ceske Budejovice"]
[Date "2022.07.04"]
[Round "4.8"]
[White "Kratochvil, Vit"]
[Black "Zeman, Matyas"]
[Result "0-1"]
[ECO "C01"]
[WhiteElo "2237"]
[BlackElo "2262"]
[Annotator "RC"]
[PlyCount "106"]
[EventDate "2022.07.01"]
[EventType "swiss"]
[EventCountry "CZE"]
[SourceTitle "playchess.com"]
[Source "ChessBase"]
[SourceQuality "1"]
[TimeControl "40/5400+30:1800+30"]

1. e4 {[%emt 0:00:03]} e6 {[%emt 0:00:16]} 2. Nc3 {[%emt 0:01:52]} d5 {[%emt 0:00:18]} 3. exd5 {[%emt 0:00:24]} exd5 {[%emt 0:00:07]} 4. d4 {[%emt 0:00:11]} Nf6 {[%emt 0:01:51]} 5. Bd3 {[%emt 0:10:42]} Nc6 {[%emt 0:00:06]} 6. Nge2 {[%emt 0:06:02]} Nb4 {[%emt 0:00:05]} 7. Bb5+ {[%emt 0:00:30]} c6 {[%emt 0:00:21]} 8. Ba4 {[%emt 0:00:10]} Bd6 {[%emt 0:01:27]} 9. Bg5 {[%emt 0:15:28]} O-O {[%emt 0:01:10]} 10. Ng3 {[%emt 0:04:37]} h6 {[%emt 0:02:14]} 11. Bxf6 {[%emt 0:15:44]} Qxf6 {[%emt 0:02:26]} 12. O-O {[%emt 0:00:25]} a5 {[%emt 0:04:21]} 13. a3 {[%emt 0:00:46]} Na6 {[%emt 0:00:37]} 14. Nce2 {[%emt 0:02:32]} b5 {[%emt 0:01:08]} 15. Bb3 {[%emt 0:00:05]} a4 {[%emt 0:00:04]} 16. Ba2 {[%emt 0:00:05]} Nc7 {[%emt 0:11:08]} 17. c3 {[%emt 0:01:29]} Bd7 {[%emt 0:07:35]} 18. Qd2 {[%emt 0:14:06]} Rae8 {[%emt 0:10:26]} 19. Rae1 {[%emt 0:03:25]} Ne6 {[%emt 0:15:26]} 20. Bb1 {[%emt 0:02:50]} Nf4 {[%emt 0:02:16]} 21. Nxf4 {[%emt 0:13:43]} Bxf4 {[%emt 0:00:08]} 22. Qd1 {[%emt 0:00:16]} g6 {[%emt 0:01:52]} 23. Rxe8 {[%emt 0:01:26]} Rxe8 {[%emt 0:00:04]} 24. Re1 {[%emt 0:00:06]} Rxe1+ {[%emt 0:01:25]} 25. Qxe1 {[%emt 0:00:01]} h5 {[%emt 0:04:23]} 26. Nf1 {[%emt 0:01:34]} Kg7 {[%emt 0:02:52]} 27. Ne3 {[%emt 0:03:43]} h4 {[%emt 0:02:58]} 28. Bd3 {[%emt 0:00:57]} Qg5 {[%emt 0:00:36]} 29. g3 {[%emt 0:01:00]} Bd6 {[%emt 0:00:47]} 30. Qd2 {[%emt 0:00:39]} Kf8 {[%emt 0:04:12]} 31. Kf1 {[%emt 0:00:29]} hxg3 {[%emt 0:01:15]} 32. hxg3 {[%emt 0:00:02]} f5 {[%emt 0:00:44]} 33. Nc4 {[%emt 0:00:59]} Qxd2 {[%emt 0:02:00]} 34. Nxd2 {[%emt 0:00:01]} Kg7 {[%emt 0:00:41]} 35. Kg2 {[%emt 0:00:58]} g5 {[%emt 0:00:20]} 36. Nf3 {[%emt 0:00:29]} Kf6 {[%emt 0:00:04]} 37. Ne1 {[%emt 0:00:29]} f4 {[%emt 0:04:32]} 38. Nc2 {[%emt 0:00:36]} fxg3 {[%emt 0:06:05]} 39. fxg3 {[%emt 0:00:01]} Bf5 {[%emt 0:00:07]} 40. Ne1 {[%emt 0:00:52]} Bxd3 {[%emt 0:00:13]} 41. Nxd3 {[%emt 0:30:08]} Kf5 {[%emt 0:30:31]} 42. Nf2 {[%emt 0:00:00]} g4 {[%emt 0:00:00]} 43. Nd3 {[%emt 0:00:00]} Ke4 {[%emt 0:00:00]} 44. Nf2+ {[%emt 0:00:00]} Ke3 {[%emt 0:00:00]} 45. Nxg4+ {[%emt 0:00:00]} Kd2 {[%emt 0:00:00]} 46. Kf2 {[%emt 0:01:17]} Kc2 {[%emt 0:00:00]} 47. Ne5 {[%emt 0:01:01]} Kxb2 {[%emt 0:00:00]} 48. Nxc6 {[%emt 0:00:06]} Kxa3 {[%emt 0:00:00]} 49. Na7 {[%emt 0:00:10]} Kb3 {[%emt 0:00:00]} 50. Nxb5 {[%emt 0:00:04]} a3 {[%emt 0:00:00]} 51. Nxa3 {[%emt 0:00:15]} Bxa3 {[%emt 0:00:00]} 52. Ke3 {[%emt 0:00:23]} Kxc3 {[%emt 0:00:00]} 53. g4 {[%emt 0:00:04]} Bc1+ {[%emt 0:00:00]} 0-1